Workbook

Sheet Net College Alloc
B5: A | C5: B | D5: C | F5: D | G5: E | H5: F | I5: G | K5: H | L5: I | M5: J | N5: K
B6: Total Base State Revenue | C6: Growth at 2.20% | D6: COLA -0.38% | E6: Total Base Revenue | F6: Part-Time Faculty | G6: Lottery Funds | H6: Interest Income | I6: Other Campus Revenue | J6: Total Income | K6: Assessment for District Office | L6: Assessment for District-Wide Costs | M6: Assessment for Districtwide Equipment | N6: Assessment for District Reserve | O6: Budget Allocation
A8: SBVC | B8: 47906883 | C8: 968682 | D8: -186438 | E8: =SUM(B8:D8) -> 48689127 | F8: 135092 | G8: 878093 | H8: 234441 | I8: 396473 | J8: =E8+F8+G8+H8+I8 -> 50333226 | K8: -9136649 | L8: =-1781331 -> -1781331 | M8: 0 | N8: 0 | O8: =SUM(J8:N8) -> 39415246
A10: CHC | B10: 22182482 | C10: 414934 | D10: -79902 | E10: =B10+C10+D10 -> 22517514 | F10: 57896 | G10: 376326 | H10: 100475 | I10: 206270 | J10: =E10+F10+G10+H10+I10 -> 23258481 | K10: -3915706 | L10: =-763427 -> -763427 | M10: 0 | N10: 0 | O10: =SUM(J10:N10) -> 18579348
A12: Total | B12: =SUM(B8:B10) -> 70089365 | C12: =C10+C8 -> 1383616 | D12: =D10+D8 -> -266340 | E12: =E10+E8 -> 71206641 | F12: =F8+F10 -> 192988 | G12: =G10+G8 -> 1254419 | H12: 334916 | I12: 602743 | J12: 73591707 | K12: -13052355 | L12: -2544758 | M12: =M10+M8 -> 0 | N12: =N10+N8 -> 0 | O12: =SUM(O8:O10) -> 57994594
A16: A. FTES based computational revenue includes state apportionment, student fees (98%) property taxes.
A17: B. Based on Governor's Budget for 2010-2011. FTES for credit and noncredit x 2.2% x per credit rate.
A18: C. Based on Governor's Budget for 2010-2011 applied to Total Base State Revenue.
A19: D. Based on 2009-2010 Advance Apportionment revised November 2009 adjusted by proposed Governor's cut of $120,000.
A20: E. 80% of Prior Year Actual split 70%/30%.
A21: F. 80% of Prior Year Actual split 70%/30%.
A22: G. 80% of Prior Year Actual income generated by each site.
A23: H. Includes all District operations including HR, Fiscal, Police, DETS, PDC.
A24: I. Includes transfer for KVCR, Property/Liability Insurance and Retiree funds for GASB 45 compliance.
A25: J. Potential centralized computer replacement program.
A26: K. Potential for funds to meet District reserve requirements.
A28: NOTES:
A29: Does not consider SERP.
A30: Site budgets with life spans other than 00 and subprograms other than 0000 must submit a balanced budget.

Sheet Sheet2

Sheet Sheet3
